[Event "Late-Titled-Tuesday-Blitz-August-29-2023"]
[Site "Chess.com"]
[Date "2023.08.29"]
[Round "5"]
[White "jeetjain"]
[Black "MusicCityMaster"]
[Result "1/2-1/2"]
[WhiteElo "2607"]
[BlackElo "2454"]
[TimeControl "180+1"]
[EndTime "14:56:06 PDT"]
[Termination "Game drawn - insufficient material"]

1. d4 {[%clk 0:02:59.4]} 1... Nf6 {[%clk 0:02:59.5]} 2. Nf3 {[%clk 0:02:59.1]}
2... g6 {[%clk 0:02:59.4]} 3. Bf4 {[%clk 0:02:59.3]} 3... Bg7 {[%clk 0:02:59.2]}
4. e3 {[%clk 0:02:57]} 4... O-O {[%clk 0:02:58.2]} 5. h3 {[%clk 0:02:56.7]} 5...
d6 {[%clk 0:02:58.6]} 6. Be2 {[%clk 0:02:55.6]} 6... b6 {[%clk 0:02:58.7]} 7.
O-O {[%clk 0:02:54.9]} 7... Bb7 {[%clk 0:02:59.4]} 8. a4 {[%clk 0:02:55.4]} 8...
a6 {[%clk 0:02:59.5]} 9. a5 {[%clk 0:02:54.7]} 9... b5 {[%clk 0:02:57.6]} 10. c4
{[%clk 0:02:55]} 10... bxc4 {[%clk 0:02:54.8]} 11. Bxc4 {[%clk 0:02:55.8]} 11...
c5 {[%clk 0:02:48]} 12. dxc5 {[%clk 0:02:54]} 12... dxc5 {[%clk 0:02:44.1]} 13.
Qxd8 {[%clk 0:02:53]} 13... Rxd8 {[%clk 0:02:45]} 14. Ne5 {[%clk 0:02:52.6]}
14... e6 {[%clk 0:02:38.3]} 15. Nc3 {[%clk 0:02:51.9]} 15... Ne4 {[%clk
0:02:20.8]} 16. Nxe4 {[%clk 0:02:44.8]} 16... Bxe4 {[%clk 0:02:21.7]} 17. Rfd1
{[%clk 0:02:44.7]} 17... Nc6 {[%clk 0:02:20.8]} 18. Nxc6 {[%clk 0:02:38.6]}
18... Bxc6 {[%clk 0:02:21.7]} 19. Rxd8+ {[%clk 0:02:37.8]} 19... Rxd8 {[%clk
0:02:21.3]} 20. Bxa6 {[%clk 0:02:38.3]} 20... Bxb2 {[%clk 0:02:20.3]} 21. Rb1
{[%clk 0:02:24.9]} 21... Bc3 {[%clk 0:02:12.3]} 22. Rc1 {[%clk 0:02:24.2]} 22...
Bb4 {[%clk 0:02:02]} 23. Bf1 {[%clk 0:02:22.4]} 23... f6 {[%clk 0:01:59.6]} 24.
Bc7 {[%clk 0:02:19.9]} 24... Rc8 {[%clk 0:01:57.5]} 25. Bb6 {[%clk 0:02:19.1]}
25... Bd5 {[%clk 0:01:56.5]} 26. Bb5 {[%clk 0:02:06.8]} 26... Kf7 {[%clk
0:01:37]} 27. f3 {[%clk 0:02:02.4]} 27... e5 {[%clk 0:01:26.9]} 28. e4 {[%clk
0:02:00.2]} 28... Be6 {[%clk 0:01:22]} 29. Ba6 {[%clk 0:01:57.2]} 29... Rb8
{[%clk 0:01:02.7]} 30. Bc7 {[%clk 0:01:50.9]} 30... Ra8 {[%clk 0:00:57.3]} 31.
Bb7 {[%clk 0:01:50.6]} 31... Rxa5 {[%clk 0:00:41.9]} 32. Bxa5 {[%clk 0:01:49.9]}
32... Bxa5 {[%clk 0:00:42.8]} 33. Ba6 {[%clk 0:01:41.8]} 33... Bd2 {[%clk
0:00:40.2]} 34. Rc2 {[%clk 0:01:38.1]} 34... Be3+ {[%clk 0:00:40.5]} 35. Kf1
{[%clk 0:01:36.3]} 35... f5 {[%clk 0:00:40.6]} 36. Bc4 {[%clk 0:01:34.1]} 36...
fxe4 {[%clk 0:00:34.8]} 37. fxe4 {[%clk 0:01:33.2]} 37... h5 {[%clk 0:00:34.7]}
38. Ke2 {[%clk 0:01:33]} 38... Bd4 {[%clk 0:00:34.6]} 39. Kd3 {[%clk 0:01:33]}
39... Kf6 {[%clk 0:00:32.6]} 40. Bxe6 {[%clk 0:01:32.3]} 40... Kxe6 {[%clk
0:00:33.5]} 41. Ra2 {[%clk 0:01:31.6]} 41... Kf6 {[%clk 0:00:33.5]} 42. h4
{[%clk 0:01:26.5]} 42... Bg1 {[%clk 0:00:28.4]} 43. Kc4 {[%clk 0:01:24.1]} 43...
Ke6 {[%clk 0:00:26.8]} 44. Ra6+ {[%clk 0:01:20.6]} 44... Kf7 {[%clk 0:00:27]}
45. Kd5 {[%clk 0:01:20.8]} 45... Bd4 {[%clk 0:00:25.5]} 46. Rc6 {[%clk
0:01:10.5]} 46... Kg7 {[%clk 0:00:22.7]} 47. Rxc5 {[%clk 0:01:06.9]} 47... Bxc5
{[%clk 0:00:22.5]} 48. Kxc5 {[%clk 0:01:07.1]} 48... g5 {[%clk 0:00:18.8]} 49.
hxg5 {[%clk 0:00:59.1]} 49... Kg6 {[%clk 0:00:19]} 50. Kd5 {[%clk 0:00:59.3]}
50... h4 {[%clk 0:00:18.2]} 51. Kxe5 {[%clk 0:00:58]} 51... Kxg5 {[%clk
0:00:18.7]} 52. Kd6 {[%clk 0:00:52]} 52... Kg4 {[%clk 0:00:19.6]} 53. e5 {[%clk
0:00:51.6]} 53... Kg3 {[%clk 0:00:20.5]} 54. e6 {[%clk 0:00:51.6]} 54... Kxg2
{[%clk 0:00:21.3]} 55. e7 {[%clk 0:00:51.8]} 55... h3 {[%clk 0:00:21.9]} 56.
e8=Q {[%clk 0:00:51.6]} 56... h2 {[%clk 0:00:22.5]} 57. Qe2+ {[%clk 0:00:50.7]}
57... Kg1 {[%clk 0:00:22.4]} 58. Qg4+ {[%clk 0:00:49.8]} 58... Kh1 {[%clk
0:00:22.7]} 59. Qh3 {[%clk 0:00:30.3]} 59... Kg1 {[%clk 0:00:22.2]} 60. Qe3+
{[%clk 0:00:18.4]} 60... Kg2 {[%clk 0:00:21.8]} 61. Qe4+ {[%clk 0:00:18.8]}
61... Kg1 {[%clk 0:00:21.9]} 62. Qe1+ {[%clk 0:00:14.3]} 62... Kg2 {[%clk
0:00:22]} 63. Qd2+ {[%clk 0:00:15.2]} 63... Kg1 {[%clk 0:00:22]} 64. Qg5+ {[%clk
0:00:16.1]} 64... Kh1 {[%clk 0:00:22.1]} 65. Qh4 {[%clk 0:00:14.7]} 65... Kg2
{[%clk 0:00:21.5]} 66. Qe4+ {[%clk 0:00:15.6]} 66... Kg1 {[%clk 0:00:21.4]} 67.
Qe3+ {[%clk 0:00:15.2]} 67... Kg2 {[%clk 0:00:21]} 68. Qe2+ {[%clk 0:00:12.6]}
68... Kg1 {[%clk 0:00:21.1]} 69. Qg4+ {[%clk 0:00:08.8]} 69... Kh1 {[%clk
0:00:20.7]} 70. Qf3+ {[%clk 0:00:07.9]} 70... Kg1 {[%clk 0:00:20.4]} 71. Qg3+
{[%clk 0:00:08.8]} 71... Kh1 {[%clk 0:00:20.2]} 72. Qe1+ {[%clk 0:00:07.4]}
72... Kg2 {[%clk 0:00:19.7]} 73. Qd2+ {[%clk 0:00:08.3]} 73... Kg1 {[%clk
0:00:19.3]} 74. Qc1+ {[%clk 0:00:09.2]} 74... Kg2 {[%clk 0:00:18.9]} 75. Qb2+
{[%clk 0:00:10.1]} 75... Kg1 {[%clk 0:00:19.2]} 76. Ke5 {[%clk 0:00:09.1]} 76...
h1=Q {[%clk 0:00:18.1]} 77. Qc1+ {[%clk 0:00:09.1]} 77... Kg2 {[%clk 0:00:18]}
78. Qxh1+ {[%clk 0:00:10]} 78... Kxh1 {[%clk 0:00:17.9]} 1/2-1/2

[Event "Late-Titled-Tuesday-Blitz-August-29-2023"]
[Site "Chess.com"]
[Date "2023.08.29"]
[Round "5"]
[White "GoltsevDmitry2000"]
[Black "GMBenjaminBok"]
[Result "1/2-1/2"]
[WhiteElo "2639"]
[BlackElo "2913"]
[TimeControl "180+1"]
[EndTime "14:56:09 PDT"]
[Termination "Game drawn by repetition"]

1. e4 {[%clk 0:02:52.3]} 1... c5 {[%clk 0:02:59.9]} 2. Nf3 {[%clk 0:02:51.8]}
2... d6 {[%clk 0:03:00.5]} 3. d4 {[%clk 0:02:51.9]} 3... cxd4 {[%clk 0:03:01.4]}
4. Nxd4 {[%clk 0:02:52.8]} 4... Nf6 {[%clk 0:03:02]} 5. Nc3 {[%clk 0:02:53.4]}
5... a6 {[%clk 0:03:02.7]} 6. f3 {[%clk 0:02:53.4]} 6... e5 {[%clk 0:03:02.8]}
7. Nb3 {[%clk 0:02:53.7]} 7... Be6 {[%clk 0:03:03.4]} 8. Be3 {[%clk 0:02:54]}
8... Be7 {[%clk 0:03:04.1]} 9. Nd5 {[%clk 0:02:53.9]} 9... Nbd7 {[%clk
0:02:59.8]} 10. c4 {[%clk 0:02:52]} 10... O-O {[%clk 0:02:58.1]} 11. Bd3 {[%clk
0:02:51.1]} 11... Bxd5 {[%clk 0:02:40.8]} 12. cxd5 {[%clk 0:02:50.6]} 12... Ne8
{[%clk 0:02:37.5]} 13. O-O {[%clk 0:02:50.5]} 13... Bg5 {[%clk 0:02:36.9]} 14.
Qd2 {[%clk 0:02:50.8]} 14... Bxe3+ {[%clk 0:02:34.4]} 15. Qxe3 {[%clk
0:02:51.7]} 15... g6 {[%clk 0:02:32.9]} 16. Rac1 {[%clk 0:02:50.8]} 16... Ng7
{[%clk 0:02:32.9]} 17. Rc2 {[%clk 0:02:47.8]} 17... Rc8 {[%clk 0:02:16.7]} 18.
Rfc1 {[%clk 0:02:45]} 18... Rxc2 {[%clk 0:02:15.6]} 19. Rxc2 {[%clk 0:02:45.9]}
19... Qb8 {[%clk 0:02:08.4]} 20. Qc1 {[%clk 0:02:42.3]} 20... Qa7+ {[%clk
0:01:48]} 21. Kh1 {[%clk 0:02:37.6]} 21... Qb6 {[%clk 0:01:47.6]} 22. Rc8 {[%clk
0:02:32.6]} 22... Nh5 {[%clk 0:01:19.9]} 23. Rxf8+ {[%clk 0:02:15.3]} 23... Kxf8
{[%clk 0:01:17.8]} 24. Qg1 {[%clk 0:02:16.2]} 24... Qb4 {[%clk 0:01:06.9]} 25.
g3 {[%clk 0:01:56.8]} 25... a5 {[%clk 0:00:57.8]} 26. Qf2 {[%clk 0:01:36.1]}
26... a4 {[%clk 0:00:56.8]} 27. Nc1 {[%clk 0:01:25.3]} 27... a3 {[%clk
0:00:51.3]} 28. bxa3 {[%clk 0:01:24.1]} 28... Qxa3 {[%clk 0:00:51.8]} 29. Nb3
{[%clk 0:01:21]} 29... Qb4 {[%clk 0:00:46.3]} 30. Qd2 {[%clk 0:01:19.7]} 30...
Qb6 {[%clk 0:00:39.3]} 31. Kg2 {[%clk 0:01:18.9]} 31... Nhf6 {[%clk 0:00:34.4]}
32. Qa5 {[%clk 0:01:16.8]} 32... Qe3 {[%clk 0:00:27.5]} 33. Qd2 {[%clk
0:01:16.2]} 33... Qxd2+ {[%clk 0:00:26.1]} 34. Nxd2 {[%clk 0:01:17.1]} 34... Nc5
{[%clk 0:00:26.7]} 35. Bc2 {[%clk 0:01:17.1]} 35... Nfd7 {[%clk 0:00:25.5]} 36.
Nc4 {[%clk 0:01:13.6]} 36... Ke7 {[%clk 0:00:25.6]} 37. Kf2 {[%clk 0:01:14.3]}
37... Nb8 {[%clk 0:00:18.1]} 38. Ke3 {[%clk 0:01:08.5]} 38... f6 {[%clk
0:00:18.6]} 39. Kd2 {[%clk 0:01:06.4]} 39... Kd7 {[%clk 0:00:18.9]} 40. Kc3
{[%clk 0:01:06.8]} 40... Kc7 {[%clk 0:00:19.3]} 41. Kb4 {[%clk 0:01:06.2]} 41...
Nbd7 {[%clk 0:00:18.9]} 42. Kb5 {[%clk 0:01:05.1]} 42... Na6 {[%clk 0:00:14.4]}
43. Na5 {[%clk 0:00:57.9]} 43... Nb6 {[%clk 0:00:10.2]} 44. Nc4 {[%clk
0:00:54.3]} 44... Nxc4 {[%clk 0:00:09.4]} 45. Kxc4 {[%clk 0:00:55.2]} 45... Kb6
{[%clk 0:00:09.6]} 46. Ba4 {[%clk 0:00:53.3]} 46... Nc5 {[%clk 0:00:07.3]} 47.
Bc2 {[%clk 0:00:51.3]} 47... Ka5 {[%clk 0:00:07.4]} 48. f4 {[%clk 0:00:49]}
48... b5+ {[%clk 0:00:07.2]} 49. Kc3 {[%clk 0:00:49.3]} 49... h6 {[%clk
0:00:07.3]} 50. h4 {[%clk 0:00:48.6]} 50... Kb6 {[%clk 0:00:06.9]} 51. Kb4
{[%clk 0:00:48.3]} 51... Nd7 {[%clk 0:00:04.5]} 52. a4 {[%clk 0:00:47.4]} 52...
bxa4 {[%clk 0:00:04.4]} 53. Bxa4 {[%clk 0:00:48.3]} 53... Nc5 {[%clk 0:00:04.9]}
54. Bc2 {[%clk 0:00:48.5]} 54... Kc7 {[%clk 0:00:05.3]} 55. Kb5 {[%clk 0:00:48]}
55... Kd7 {[%clk 0:00:05.5]} 56. Kc4 {[%clk 0:00:47.7]} 56... Ke7 {[%clk
0:00:05.9]} 57. Kc3 {[%clk 0:00:48.2]} 57... Nd7 {[%clk 0:00:05.3]} 58. Kd3
{[%clk 0:00:48.3]} 58... exf4 {[%clk 0:00:05.5]} 59. gxf4 {[%clk 0:00:48.2]}
59... g5 {[%clk 0:00:06.2]} 60. hxg5 {[%clk 0:00:47.9]} 60... fxg5 {[%clk
0:00:06.3]} 61. fxg5 {[%clk 0:00:48.8]} 61... hxg5 {[%clk 0:00:06.5]} 62. Ke3
{[%clk 0:00:49.7]} 62... Ne5 {[%clk 0:00:06.9]} 63. Kf2 {[%clk 0:00:49.7]} 63...
Kf6 {[%clk 0:00:07.8]} 64. Kg3 {[%clk 0:00:49.4]} 64... Nf7 {[%clk 0:00:08]} 65.
Kg4 {[%clk 0:00:48.1]} 65... Ne5+ {[%clk 0:00:08.3]} 66. Kh5 {[%clk 0:00:47.7]}
66... Ng6 {[%clk 0:00:07.9]} 67. Kg4 {[%clk 0:00:47.4]} 67... Ne5+ {[%clk
0:00:04.6]} 68. Kh5 {[%clk 0:00:47.7]} 68... g4 {[%clk 0:00:04.1]} 69. Kh4
{[%clk 0:00:48]} 69... Kg6 {[%clk 0:00:04.3]} 70. Bd1 {[%clk 0:00:47.8]} 70...
Kf6 {[%clk 0:00:04.2]} 71. Bxg4 {[%clk 0:00:47.5]} 71... Nd3 {[%clk 0:00:04.8]}
72. Bf5 {[%clk 0:00:45.9]} 72... Ke5 {[%clk 0:00:03.9]} 73. Kg4 {[%clk
0:00:46.5]} 73... Nc5 {[%clk 0:00:04.8]} 74. Kf3 {[%clk 0:00:46.7]} 74... Nb3
{[%clk 0:00:05.4]} 75. Ke3 {[%clk 0:00:45.2]} 75... Nc5 {[%clk 0:00:05.7]} 76.
Bh7 {[%clk 0:00:46.1]} 76... Na4 {[%clk 0:00:05.1]} 77. Bf5 {[%clk 0:00:43.7]}
77... Nb6 {[%clk 0:00:05.2]} 78. Bh7 {[%clk 0:00:44]} 78... Nc4+ {[%clk
0:00:05.5]} 79. Kd3 {[%clk 0:00:44.1]} 79... Na5 {[%clk 0:00:06.2]} 80. Ke3
{[%clk 0:00:44.5]} 80... Nb7 {[%clk 0:00:06.4]} 81. Bf5 {[%clk 0:00:44.4]} 81...
Nc5 {[%clk 0:00:07.1]} 82. Bh7 {[%clk 0:00:44.1]} 82... Nb3 {[%clk 0:00:07.1]}
83. Bf5 {[%clk 0:00:44.2]} 83... Na5 {[%clk 0:00:06.6]} 84. Kd3 {[%clk
0:00:42.2]} 84... Nb7 {[%clk 0:00:06.5]} 85. Ke3 {[%clk 0:00:39.5]} 85... Nc5
{[%clk 0:00:07.4]} 1/2-1/2

[Event "Late-Titled-Tuesday-Blitz-August-29-2023"]
[Site "Chess.com"]
[Date "2023.08.29"]
[Round "5"]
[White "ZuraTqebuchava"]
[Black "Onthequiet"]
[Result "0-1"]
[WhiteElo "2154"]
[BlackElo "2376"]
[TimeControl "180+1"]
[EndTime "14:56:18 PDT"]
[Termination "Onthequiet won on time"]

1. e4 {[%clk 0:03:00]} 1... c6 {[%clk 0:02:57.6]} 2. d4 {[%clk 0:02:58.5]} 2...
d5 {[%clk 0:02:58]} 3. exd5 {[%clk 0:02:59]} 3... cxd5 {[%clk 0:02:57.9]} 4. h3
{[%clk 0:02:59.4]} 4... Nf6 {[%clk 0:02:57.4]} 5. Bd3 {[%clk 0:02:58.3]} 5...
Nc6 {[%clk 0:02:56.5]} 6. c3 {[%clk 0:02:58.2]} 6... g6 {[%clk 0:02:55.4]} 7.
Nf3 {[%clk 0:02:57.8]} 7... Bg7 {[%clk 0:02:55.6]} 8. O-O {[%clk 0:02:57.9]}
8... O-O {[%clk 0:02:55.8]} 9. Re1 {[%clk 0:02:56]} 9... Bf5 {[%clk 0:02:54.6]}
10. Bxf5 {[%clk 0:02:53.4]} 10... gxf5 {[%clk 0:02:54]} 11. Bf4 {[%clk
0:02:52.9]} 11... e6 {[%clk 0:02:51.1]} 12. Ne5 {[%clk 0:02:52.1]} 12... Rc8
{[%clk 0:02:49.5]} 13. Nxc6 {[%clk 0:02:49.5]} 13... Rxc6 {[%clk 0:02:46.5]} 14.
Be5 {[%clk 0:02:49.9]} 14... Ne4 {[%clk 0:02:43.6]} 15. Bxg7 {[%clk 0:02:25.4]}
15... Kxg7 {[%clk 0:02:41.9]} 16. Nd2 {[%clk 0:02:26]} 16... Kh8 {[%clk
0:02:38.1]} 17. Nxe4 {[%clk 0:02:19.8]} 17... fxe4 {[%clk 0:02:37.5]} 18. Qh5
{[%clk 0:02:20]} 18... f5 {[%clk 0:02:33.8]} 19. f3 {[%clk 0:01:47.3]} 19... Qf6
{[%clk 0:02:14.8]} 20. fxe4 {[%clk 0:01:42.7]} 20... dxe4 {[%clk 0:02:15.1]} 21.
Rf1 {[%clk 0:01:39.9]} 21... Qg6 {[%clk 0:02:13.1]} 22. Qxg6 {[%clk 0:01:37.2]}
22... hxg6 {[%clk 0:02:13.6]} 23. Rf4 {[%clk 0:01:36.6]} 23... Kg7 {[%clk
0:02:09.9]} 24. h4 {[%clk 0:01:34.5]} 24... Kh6 {[%clk 0:02:05.4]} 25. Kf2
{[%clk 0:01:32.3]} 25... b5 {[%clk 0:01:57.2]} 26. a3 {[%clk 0:01:28.6]} 26...
a5 {[%clk 0:01:54.6]} 27. Rc1 {[%clk 0:01:18.9]} 27... Rd8 {[%clk 0:01:53.2]}
28. Ke3 {[%clk 0:01:17.7]} 28... b4 {[%clk 0:01:43.9]} 29. axb4 {[%clk
0:01:15.4]} 29... axb4 {[%clk 0:01:43.8]} 30. c4 {[%clk 0:01:14.7]} 30... e5
{[%clk 0:01:39.7]} 31. dxe5 {[%clk 0:01:08.2]} 31... Rd3+ {[%clk 0:01:39.9]} 32.
Ke2 {[%clk 0:01:08.6]} 32... Rc5 {[%clk 0:01:29]} 33. e6 {[%clk 0:00:47.9]}
33... Rd6 {[%clk 0:01:13.6]} 34. Rff1 {[%clk 0:00:44.5]} 34... Rxe6 {[%clk
0:01:12.2]} 35. Rfd1 {[%clk 0:00:44.3]} 35... Kh5 {[%clk 0:00:59]} 36. b3 {[%clk
0:00:33.4]} 36... Ra5 {[%clk 0:00:50.8]} 37. Rd2 {[%clk 0:00:30.5]} 37... Kxh4
{[%clk 0:00:47]} 38. c5 {[%clk 0:00:29]} 38... Rc6 {[%clk 0:00:45]} 39. Rdc2
{[%clk 0:00:26.5]} 39... Kg3 {[%clk 0:00:42.9]} 40. Ke3 {[%clk 0:00:26.5]} 40...
Ra3 {[%clk 0:00:38.9]} 41. Kd4 {[%clk 0:00:24.8]} 41... Rxb3 {[%clk 0:00:36.9]}
42. Kd5 {[%clk 0:00:25]} 42... Rc8 {[%clk 0:00:37.2]} 43. c6 {[%clk 0:00:24.4]}
43... Rd3+ {[%clk 0:00:37.6]} 44. Ke6 {[%clk 0:00:24.6]} 44... b3 {[%clk
0:00:37.6]} 45. Rb2 {[%clk 0:00:21.2]} 45... f4 {[%clk 0:00:32.9]} 46. c7 {[%clk
0:00:18.4]} 46... e3 {[%clk 0:00:32.1]} 47. Kf6 {[%clk 0:00:13.3]} 47... Rd6+
{[%clk 0:00:30.7]} 48. Ke7 {[%clk 0:00:12.6]} 48... Rd2 {[%clk 0:00:28.2]} 49.
Rxb3 {[%clk 0:00:11.6]} 49... g5 {[%clk 0:00:23.7]} 50. Rb8 {[%clk 0:00:10.7]}
50... Rxc7+ {[%clk 0:00:20.5]} 51. Rxc7 {[%clk 0:00:10.2]} 51... Rxg2 {[%clk
0:00:20.9]} 52. Rb3 {[%clk 0:00:08.6]} 52... Rd2 {[%clk 0:00:13.6]} 53. Kf6
{[%clk 0:00:07.9]} 53... g4 {[%clk 0:00:13.4]} 54. Kf5 {[%clk 0:00:07.2]} 54...
Rd5+ {[%clk 0:00:12.2]} 55. Ke4 {[%clk 0:00:06.7]} 55... Rd8 {[%clk 0:00:10.9]}
56. Rg7 {[%clk 0:00:05.1]} 56... Re8+ {[%clk 0:00:10.6]} 57. Kf5 {[%clk
0:00:05]} 57... Kf2 {[%clk 0:00:08.4]} 58. Kxg4 {[%clk 0:00:03.2]} 58... f3
{[%clk 0:00:07.5]} 59. Rf7 {[%clk 0:00:03.5]} 59... Rg8+ {[%clk 0:00:07.3]} 60.
Kh3 {[%clk 0:00:02.9]} 60... Rh8+ {[%clk 0:00:04.3]} 61. Kg4 {[%clk 0:00:02.9]}
61... Rg8+ {[%clk 0:00:04.9]} 62. Kf4 {[%clk 0:00:03.4]} 62... Rh8 {[%clk
0:00:03.2]} 63. Ke4 {[%clk 0:00:03.3]} 63... Rh3 {[%clk 0:00:03.8]} 64. Kd3
{[%clk 0:00:02.1]} 64... e2 {[%clk 0:00:02.6]} 65. Rb2 {[%clk 0:00:02.2]} 65...
Rg3 {[%clk 0:00:02.9]} 66. Rxf3+ {[%clk 0:00:02]} 66... Rxf3+ {[%clk 0:00:02.3]}
67. Kd2 {[%clk 0:00:02.3]} 67... Rg3 {[%clk 0:00:02.7]} 68. Kc1 {[%clk
0:00:01.5]} 68... Kf1 {[%clk 0:00:02.3]} 0-1

[Event "Late-Titled-Tuesday-Blitz-August-29-2023"]
[Site "Chess.com"]
[Date "2023.08.29"]
[Round "5"]
[White "slidingknight2775"]
[Black "ShrookWafa"]
[Result "1/2-1/2"]
[WhiteElo "2534"]
[BlackElo "2422"]
[TimeControl "180+1"]
[EndTime "14:56:22 PDT"]
[Termination "Game drawn by stalemate"]

1. d4 {[%clk 0:03:00.9]} 1... d5 {[%clk 0:02:59.2]} 2. Nf3 {[%clk 0:03:00.8]}
2... Nf6 {[%clk 0:02:59.2]} 3. c4 {[%clk 0:03:01.3]} 3... c6 {[%clk 0:02:57.4]}
4. g3 {[%clk 0:03:01.8]} 4... Bf5 {[%clk 0:02:57.2]} 5. Nc3 {[%clk 0:03:01.7]}
5... dxc4 {[%clk 0:02:56.1]} 6. Bg2 {[%clk 0:02:59.1]} 6... e6 {[%clk
0:02:55.4]} 7. Ne5 {[%clk 0:02:53.1]} 7... Bb4 {[%clk 0:02:55.1]} 8. Nxc4 {[%clk
0:02:51.3]} 8... O-O {[%clk 0:02:54.9]} 9. O-O {[%clk 0:02:50.7]} 9... Nbd7
{[%clk 0:02:50.2]} 10. a3 {[%clk 0:02:43.4]} 10... Bxc3 {[%clk 0:02:41.7]} 11.
bxc3 {[%clk 0:02:44.3]} 11... Nb6 {[%clk 0:02:41.6]} 12. Ne5 {[%clk 0:02:41.3]}
12... Nbd5 {[%clk 0:02:35.8]} 13. Qe1 {[%clk 0:02:04.5]} 13... Bg6 {[%clk
0:02:34]} 14. c4 {[%clk 0:01:46.7]} 14... Nb6 {[%clk 0:02:29]} 15. Bb2 {[%clk
0:01:43.8]} 15... Na4 {[%clk 0:02:25.6]} 16. Qb4 {[%clk 0:01:41.9]} 16... Nxb2
{[%clk 0:02:24.5]} 17. Qxb2 {[%clk 0:01:42.8]} 17... Rb8 {[%clk 0:02:22.8]} 18.
e3 {[%clk 0:01:38.6]} 18... Be4 {[%clk 0:02:19.9]} 19. Qb4 {[%clk 0:01:09.4]}
19... Bxg2 {[%clk 0:02:17.9]} 20. Kxg2 {[%clk 0:01:10.3]} 20... Qc7 {[%clk
0:02:01]} 21. Rab1 {[%clk 0:01:09.1]} 21... Ne4 {[%clk 0:01:53.7]} 22. Rfc1
{[%clk 0:01:05.2]} 22... c5 {[%clk 0:01:51.3]} 23. Qb5 {[%clk 0:00:49]} 23...
cxd4 {[%clk 0:01:42.8]} 24. exd4 {[%clk 0:00:49.9]} 24... Rfd8 {[%clk 0:01:34]}
25. Nf3 {[%clk 0:00:43]} 25... b6 {[%clk 0:01:25.4]} 26. a4 {[%clk 0:00:40.7]}
26... h6 {[%clk 0:01:24.7]} 27. Qb2 {[%clk 0:00:36.9]} 27... Qb7 {[%clk
0:01:21.2]} 28. h4 {[%clk 0:00:32.7]} 28... Rbc8 {[%clk 0:01:13.7]} 29. Qe2
{[%clk 0:00:25.1]} 29... Nd6 {[%clk 0:01:08]} 30. c5 {[%clk 0:00:21.5]} 30...
Nf5 {[%clk 0:01:07.9]} 31. Kg1 {[%clk 0:00:19]} 31... Nxd4 {[%clk 0:01:03]} 32.
Nxd4 {[%clk 0:00:19.9]} 32... Rxd4 {[%clk 0:01:01.9]} 33. cxb6 {[%clk
0:00:15.8]} 33... Rxc1+ {[%clk 0:00:59.4]} 34. Rxc1 {[%clk 0:00:16.7]} 34...
axb6 {[%clk 0:00:59.5]} 35. Qb5 {[%clk 0:00:15.3]} 35... Rd8 {[%clk 0:00:55.8]}
36. Rb1 {[%clk 0:00:14.5]} 36... Qf3 {[%clk 0:00:44]} 37. Qxb6 {[%clk
0:00:10.1]} 37... Rd2 {[%clk 0:00:43.7]} 38. a5 {[%clk 0:00:07.6]} 38... Ra2
{[%clk 0:00:42.9]} 39. a6 {[%clk 0:00:05.3]} 39... Qa3 {[%clk 0:00:27.4]} 40. a7
{[%clk 0:00:03.1]} 40... Qxa7 {[%clk 0:00:27]} 41. Qxa7 {[%clk 0:00:04]} 41...
Rxa7 {[%clk 0:00:26.8]} 42. Kg2 {[%clk 0:00:04.9]} 42... Kh7 {[%clk 0:00:26.9]}
43. Rb6 {[%clk 0:00:05]} 43... h5 {[%clk 0:00:26.9]} 44. Rb5 {[%clk 0:00:04.9]}
44... Kg6 {[%clk 0:00:27.2]} 45. Rb6 {[%clk 0:00:05.4]} 45... Ra3 {[%clk
0:00:26.4]} 46. Rc6 {[%clk 0:00:05.7]} 46... Kf6 {[%clk 0:00:26]} 47. Rb6 {[%clk
0:00:05.9]} 47... g5 {[%clk 0:00:26]} 48. hxg5+ {[%clk 0:00:05.8]} 48... Kxg5
{[%clk 0:00:26.2]} 49. Rb5+ {[%clk 0:00:06.7]} 49... f5 {[%clk 0:00:25.7]} 50.
Re5 {[%clk 0:00:05.4]} 50... Ra6 {[%clk 0:00:24.8]} 51. Rb5 {[%clk 0:00:03.5]}
51... h4 {[%clk 0:00:23.4]} 52. gxh4+ {[%clk 0:00:03.3]} 52... Kxh4 {[%clk
0:00:23.5]} 53. Kf3 {[%clk 0:00:04]} 53... Ra4 {[%clk 0:00:20.5]} 54. Rb6 {[%clk
0:00:03.4]} 54... Re4 {[%clk 0:00:20.3]} 55. Rb8 {[%clk 0:00:02.4]} 55... Kg5
{[%clk 0:00:20.4]} 56. Rf8 {[%clk 0:00:02.3]} 56... Ra4 {[%clk 0:00:19.9]} 57.
Kg2 {[%clk 0:00:02.8]} 57... Ra3 {[%clk 0:00:20]} 58. Rf7 {[%clk 0:00:03.1]}
58... Kf4 {[%clk 0:00:20.2]} 59. Rf6 {[%clk 0:00:02.9]} 59... e5 {[%clk
0:00:20.5]} 60. Rh6 {[%clk 0:00:02.7]} 60... e4 {[%clk 0:00:20.9]} 61. Rh4+
{[%clk 0:00:03]} 61... Kg5 {[%clk 0:00:21.3]} 62. Rh8 {[%clk 0:00:03]} 62... Ra2
{[%clk 0:00:21.7]} 63. Kf1 {[%clk 0:00:02.5]} 63... Kf4 {[%clk 0:00:21.9]} 64.
Rh4+ {[%clk 0:00:02.5]} 64... Ke5 {[%clk 0:00:22.3]} 65. Rh8 {[%clk 0:00:03.4]}
65... Rb2 {[%clk 0:00:21.5]} 66. Re8+ {[%clk 0:00:03.4]} 66... Kf4 {[%clk
0:00:21.8]} 67. Rh8 {[%clk 0:00:04.1]} 67... e3 {[%clk 0:00:21.7]} 68. fxe3+
{[%clk 0:00:03.4]} 68... Kxe3 {[%clk 0:00:22]} 69. Rh3+ {[%clk 0:00:03.4]} 69...
Ke4 {[%clk 0:00:21.9]} 70. Rh8 {[%clk 0:00:03.2]} 70... Ra2 {[%clk 0:00:19.8]}
71. Rh3 {[%clk 0:00:03.2]} 71... Rd2 {[%clk 0:00:18.9]} 72. Rb3 {[%clk
0:00:03.5]} 72... Rd3 {[%clk 0:00:19]} 73. Rxd3 {[%clk 0:00:03.1]} 73... Kxd3
{[%clk 0:00:19]} 74. Kf2 {[%clk 0:00:04]} 74... Ke4 {[%clk 0:00:17.6]} 75. Ke2
{[%clk 0:00:04.3]} 75... Kf4 {[%clk 0:00:17.7]} 76. Kf2 {[%clk 0:00:04.7]} 76...
Kg4 {[%clk 0:00:18.4]} 77. Kg2 {[%clk 0:00:05.1]} 77... f4 {[%clk 0:00:18.8]}
78. Kf2 {[%clk 0:00:05.6]} 78... f3 {[%clk 0:00:19.3]} 79. Kf1 {[%clk
0:00:05.9]} 79... Kg3 {[%clk 0:00:19.8]} 80. Kg1 {[%clk 0:00:06.4]} 80... f2+
{[%clk 0:00:20.7]} 81. Kf1 {[%clk 0:00:07]} 81... Kf3 {[%clk 0:00:21.6]} 1/2-1/2